[Event "Live Chess"]
[Site "Chess.com"]
[Date "2011.01.14"]
[Round "-"]
[White "cronopio53"]
[Black "hipposcottimus"]
[Result "1/2-1/2"]
[CurrentPosition "4k3/4P3/1N3KN1/2B5/8/8/8/8 b - -"]
[Timezone "UTC"]
[ECO "D00"]
[ECOUrl "https://www.chess.com/openings/Queens-Pawn-Opening-1...d5-2.e3-c5"]
[UTCDate "2011.01.14"]
[UTCTime "21:07:07"]
[WhiteElo "1336"]
[BlackElo "1348"]
[TimeControl "600"]
[Termination "Game drawn by stalemate"]
[StartTime "21:07:07"]
[EndDate "2011.01.14"]
[EndTime "21:26:06"]
[Link "https://www.chess.com/game/live/87607883"]

1. d4 {[%clk 0:10:00]} 1... d5 {[%clk 0:10:00]} 2. e3 {[%clk 0:09:58.8]} 2... c5 {[%clk 0:09:26.6]} 3. dxc5 {[%clk 0:09:48.8]} 3... e5 {[%clk 0:09:24.2]} 4. b4 {[%clk 0:09:40]} 4... b6 {[%clk 0:09:21.1]} 5. cxb6 {[%clk 0:09:20]} 5... Qxb6 {[%clk 0:08:23.4]} 6. Qxd5 {[%clk 0:09:06.5]} 6... Qxb4+ {[%clk 0:08:06.8]} 7. Bd2 {[%clk 0:08:48.6]} 7... Bb7 {[%clk 0:08:04.3]} 8. Qxe5+ {[%clk 0:08:01.7]} 8... Qe7 {[%clk 0:07:58.5]} 9. Qxe7+ {[%clk 0:07:45.1]} 9... Bxe7 {[%clk 0:06:53.1]} 10. Bb5+ {[%clk 0:07:36.1]} 10... Bc6 {[%clk 0:06:50.9]} 11. Bxc6+ {[%clk 0:07:32.5]} 11... Nxc6 {[%clk 0:06:50.6]} 12. Nf3 {[%clk 0:07:29.6]} 12... Bb4 {[%clk 0:06:49.5]} 13. c3 {[%clk 0:07:25.2]} 13... Bd6 {[%clk 0:06:43.1]} 14. O-O {[%clk 0:07:21]} 14... Nf6 {[%clk 0:06:42.7]} 15. a3 {[%clk 0:07:11.9]} 15... O-O {[%clk 0:06:42.2]} 16. c4 {[%clk 0:07:05.1]} 16... Ng4 {[%clk 0:06:41.6]} 17. g3 {[%clk 0:06:57.2]} 17... f5 {[%clk 0:06:39.5]} 18. h3 {[%clk 0:06:47.9]} 18... Nf6 {[%clk 0:06:32.4]} 19. Nc3 {[%clk 0:06:39.1]} 19... h6 {[%clk 0:06:21.4]} 20. a4 {[%clk 0:06:25.2]} 20... g5 {[%clk 0:06:18]} 21. Nb5 {[%clk 0:06:13]} 21... Bb8 {[%clk 0:06:13.3]} 22. Bc3 {[%clk 0:06:07.3]} 22... Kh7 {[%clk 0:06:01.8]} 23. Nh2 {[%clk 0:05:32.9]} 23... Ne4 {[%clk 0:05:58.3]} 24. Be1 {[%clk 0:05:10.4]} 24... f4 {[%clk 0:05:57.5]} 25. gxf4 {[%clk 0:04:18]} 25... gxf4 {[%clk 0:05:48.8]} 26. f3 {[%clk 0:04:00]} 26... Ng5 {[%clk 0:05:37.3]} 27. e4 {[%clk 0:03:47.6]} 27... Nxh3+ {[%clk 0:05:34.3]} 28. Kg2 {[%clk 0:03:29.2]} 28... Ng5 {[%clk 0:05:24.1]} 29. Rd1 {[%clk 0:03:22.7]} 29... Rg8 {[%clk 0:05:13.8]} 30. Kh1 {[%clk 0:03:08.8]} 30... Rg6 {[%clk 0:04:44]} 31. Rd7+ {[%clk 0:03:02.8]} 31... Kg8 {[%clk 0:04:33]} 32. Bh4 {[%clk 0:02:31.3]} 32... a6 {[%clk 0:04:28]} 33. Nc3 {[%clk 0:02:23]} 33... Ba7 {[%clk 0:03:46.2]} 34. Ne2 {[%clk 0:02:06.4]} 34... Be3 {[%clk 0:03:36.8]} 35. Ng4 {[%clk 0:02:04.3]} 35... Bd2 {[%clk 0:03:06.4]} 36. Rxd2 {[%clk 0:02:00.4]} 36... Nb4 {[%clk 0:02:55.2]} 37. Nxf4 {[%clk 0:01:52.7]} 37... Rg7 {[%clk 0:02:50.2]} 38. Nxh6+ {[%clk 0:01:48.9]} 38... Kh7 {[%clk 0:02:48.4]} 39. Ng4 {[%clk 0:01:45.1]} 39... Nc6 {[%clk 0:02:43.2]} 40. Rh2 {[%clk 0:01:43.6]} 40... Kg8 {[%clk 0:02:41]} 41. Nf6+ {[%clk 0:01:40.2]} 41... Kf7 {[%clk 0:02:39.3]} 42. N4h5 {[%clk 0:01:33]} 42... Rg6 {[%clk 0:02:34.5]} 43. Rg1 {[%clk 0:01:27.1]} 43... Nxf3 {[%clk 0:02:28.8]} 44. Rxg6 {[%clk 0:01:22.2]} 44... Kxg6 {[%clk 0:02:25.2]} 45. Rh3 {[%clk 0:01:14.6]} 45... Nce5 {[%clk 0:02:20.6]} 46. Kg2 {[%clk 0:01:03.8]} 46... Re8 {[%clk 0:02:13.9]} 47. Rxf3 {[%clk 0:01:01.1]} 47... Nxf3 {[%clk 0:02:11.9]} 48. Kf2 {[%clk 0:01:00.3]} 48... Rf8 {[%clk 0:02:09.2]} 49. Kxf3 {[%clk 0:00:58.2]} 49... Rc8 {[%clk 0:02:05.2]} 50. Kf4 {[%clk 0:00:54.8]} 50... Rxc4 {[%clk 0:02:04.3]} 51. Ng3 {[%clk 0:00:48.5]} 51... Rxa4 {[%clk 0:02:02.9]} 52. Nd5 {[%clk 0:00:46.8]} 52... a5 {[%clk 0:02:01.2]} 53. Ke3 {[%clk 0:00:43.6]} 53... Ra3+ {[%clk 0:01:59.8]} 54. Kf4 {[%clk 0:00:41.1]} 54... Ra4 {[%clk 0:01:56.7]} 55. Ke3 {[%clk 0:00:39.3]} 55... Rc4 {[%clk 0:01:55.8]} 56. Kd2 {[%clk 0:00:38.3]} 56... a4 {[%clk 0:01:54.8]} 57. Be7 {[%clk 0:00:35.3]} 57... a3 {[%clk 0:01:52]} 58. Bxa3 {[%clk 0:00:32.3]} 58... Kg5 {[%clk 0:01:46.4]} 59. Kd3 {[%clk 0:00:31]} 59... Ra4 {[%clk 0:01:42.8]} 60. Be7+ {[%clk 0:00:29.3]} 60... Kg4 {[%clk 0:01:40.1]} 61. Ne2 {[%clk 0:00:28.2]} 61... Ra3+ {[%clk 0:01:38.2]} 62. Bxa3 {[%clk 0:00:24.6]} 62... Kg5 {[%clk 0:01:35.4]} 63. e5 {[%clk 0:00:22.9]} 63... Kg6 {[%clk 0:01:35.1]} 64. Ke4 {[%clk 0:00:21]} 64... Kf7 {[%clk 0:01:34.8]} 65. Kf5 {[%clk 0:00:19.9]} 65... Ke8 {[%clk 0:01:33.4]} 66. Nef4 {[%clk 0:00:19.6]} 66... Kd7 {[%clk 0:01:33.1]} 67. Ng6 {[%clk 0:00:19.2]} 67... Ke8 {[%clk 0:01:32.8]} 68. e6 {[%clk 0:00:18.4]} 68... Kd8 {[%clk 0:01:31.3]} 69. Kf6 {[%clk 0:00:18]} 69... Ke8 {[%clk 0:01:30.4]} 70. e7 {[%clk 0:00:16]} 70... Kd7 {[%clk 0:01:27.1]} 71. Nb6+ {[%clk 0:00:14.7]} 71... Ke8 {[%clk 0:01:25.5]} 72. Bc5 {[%clk 0:00:12.1]} 1/2-1/2

[Event "Live Chess"]
[Site "Chess.com"]
[Date "2011.01.14"]
[Round "-"]
[White "hipposcottimus"]
[Black "workallday"]
[Result "0-1"]
[CurrentPosition "5rk1/p4pp1/2p4p/1p6/4n1R1/1P2NB1Q/6PP/4q2K w - -"]
[Timezone "UTC"]
[ECO "C41"]
[ECOUrl "https://www.chess.com/openings/Philidor-Defense-3.d4-Bg4-4.dxe5"]
[UTCDate "2011.01.14"]
[UTCTime "20:38:23"]
[WhiteElo "1348"]
[BlackElo "1257"]
[TimeControl "120+12"]
[Termination "workallday won on time"]
[StartTime "20:38:23"]
[EndDate "2011.01.14"]
[EndTime "20:47:15"]
[Link "https://www.chess.com/game/live/87598930"]

1. e4 {[%clk 0:02:00]} 1... e5 {[%clk 0:02:00]} 2. Nf3 {[%clk 0:02:08.7]} 2... d6 {[%clk 0:02:10.7]} 3. d4 {[%clk 0:02:07.3]} 3... Bg4 {[%clk 0:02:19.8]} 4. dxe5 {[%clk 0:02:08.2]} 4... Bxf3 {[%clk 0:02:30.3]} 5. Qxf3 {[%clk 0:02:15.3]} 5... Nf6 {[%clk 0:02:40.7]} 6. Nc3 {[%clk 0:02:26.5]} 6... dxe5 {[%clk 0:02:46]} 7. Bg5 {[%clk 0:02:33.1]} 7... Be7 {[%clk 0:02:56]} 8. Bb5+ {[%clk 0:02:38.4]} 8... c6 {[%clk 0:03:05.2]} 9. Rd1 {[%clk 0:02:48.6]} 9... Nbd7 {[%clk 0:03:15]} 10. Bc4 {[%clk 0:02:55.8]} 10... Qa5 {[%clk 0:03:09.3]} 11. Bxf6 {[%clk 0:02:47.4]} 11... Bxf6 {[%clk 0:03:17.9]} 12. Qd3 {[%clk 0:02:50.2]} 12... Rd8 {[%clk 0:03:01.2]} 13. O-O {[%clk 0:02:57.3]} 13... O-O {[%clk 0:03:11.5]} 14. Qh3 {[%clk 0:02:57.8]} 14... Nb6 {[%clk 0:02:55.4]} 15. Be2 {[%clk 0:02:52.4]} 15... Rxd1 {[%clk 0:02:24.3]} 16. Rxd1 {[%clk 0:02:58.8]} 16... h6 {[%clk 0:02:33.3]} 17. Rf1 {[%clk 0:02:50.2]} 17... Na4 {[%clk 0:02:43.5]} 18. Nd1 {[%clk 0:02:02]} 18... b5 {[%clk 0:02:37.9]} 19. f4 {[%clk 0:02:07]} 19... exf4 {[%clk 0:02:41.9]} 20. b3 {[%clk 0:02:18.7]} 20... Nc5 {[%clk 0:02:51.1]} 21. Rxf4 {[%clk 0:02:20.5]} 21... Qxa2 {[%clk 0:02:57.9]} 22. Qg3 {[%clk 0:02:27.7]} 22... Bg5 {[%clk 0:02:51.2]} 23. Rg4 {[%clk 0:02:28.6]} 23... Nxe4 {[%clk 0:02:59.2]} 24. Qh3 {[%clk 0:02:30]} 24... Qxc2 {[%clk 0:03:02.8]} 25. Bf3 {[%clk 0:02:37.5]} 25... Be3+ {[%clk 0:03:03.2]} 26. Nxe3 {[%clk 0:02:44.6]} 26... Qf2+ {[%clk 0:03:13.2]} 27. Kh1 {[%clk 0:02:45.6]} 27... Qe1+ {[%clk 0:03:23.9]} 0-1

[Event "Live Chess"]
[Site "Chess.com"]
[Date "2011.01.14"]
[Round "-"]
[White "hipposcottimus"]
[Black "xOverLoadx"]
[Result "0-1"]
[CurrentPosition "6k1/3b1pBp/1p3Pp1/p1bpr2r/5R2/1P1p2P1/P1B4P/2R3K1 w - -"]
[Timezone "UTC"]
[ECO "C41"]
[ECOUrl "https://www.chess.com/openings/Philidor-Defense-Exchange-Variation-4.Nxd4"]
[UTCDate "2011.01.14"]
[UTCTime "20:03:50"]
[WhiteElo "1358"]
[BlackElo "1309"]
[TimeControl "600"]
[Termination "xOverLoadx won on time"]
[StartTime "20:03:50"]
[EndDate "2011.01.14"]
[EndTime "20:18:13"]
[Link "https://www.chess.com/game/live/87588553"]

1. e4 {[%clk 0:10:00]} 1... e5 {[%clk 0:10:00]} 2. Nf3 {[%clk 0:09:57]} 2... d6 {[%clk 0:09:55.7]} 3. d4 {[%clk 0:09:50.9]} 3... exd4 {[%clk 0:09:49.7]} 4. Nxd4 {[%clk 0:09:47.9]} 4... Bd7 {[%clk 0:09:42.4]} 5. Be3 {[%clk 0:09:32]} 5... Nc6 {[%clk 0:09:36.9]} 6. c3 {[%clk 0:09:25.1]} 6... Nf6 {[%clk 0:09:29.2]} 7. Nd2 {[%clk 0:09:19]} 7... Be7 {[%clk 0:09:05.1]} 8. f4 {[%clk 0:09:14.4]} 8... O-O {[%clk 0:08:47.8]} 9. Be2 {[%clk 0:09:03.9]} 9... Nxd4 {[%clk 0:08:09.6]} 10. cxd4 {[%clk 0:08:49.9]} 10... d5 {[%clk 0:08:03.5]} 11. e5 {[%clk 0:08:40.9]} 11... Ne4 {[%clk 0:08:00.3]} 12. Bf3 {[%clk 0:08:33.6]} 12... Nxd2 {[%clk 0:07:35.3]} 13. Qxd2 {[%clk 0:08:27.4]} 13... a5 {[%clk 0:07:29.3]} 14. O-O {[%clk 0:08:19.8]} 14... Bb4 {[%clk 0:07:25.1]} 15. Qc2 {[%clk 0:08:10.5]} 15... c6 {[%clk 0:07:07]} 16. Be2 {[%clk 0:07:53.3]} 16... Qc8 {[%clk 0:06:52.8]} 17. Bd3 {[%clk 0:07:35.8]} 17... g6 {[%clk 0:06:35.3]} 18. f5 {[%clk 0:07:32.1]} 18... b6 {[%clk 0:06:18.1]} 19. f6 {[%clk 0:07:16.5]} 19... c5 {[%clk 0:06:00.9]} 20. b3 {[%clk 0:06:57.6]} 20... cxd4 {[%clk 0:05:45.4]} 21. Bh6 {[%clk 0:06:46.2]} 21... Re8 {[%clk 0:05:29.2]} 22. Qf2 {[%clk 0:06:33.1]} 22... Bc5 {[%clk 0:05:24.3]} 23. Qh4 {[%clk 0:06:17.8]} 23... Rxe5 {[%clk 0:05:09.3]} 24. Bg7 {[%clk 0:05:59.6]} 24... Qc7 {[%clk 0:04:40.5]} 25. Rac1 {[%clk 0:05:25.3]} 25... Rh5 {[%clk 0:04:23.7]} 26. Qf4 {[%clk 0:04:27.9]} 26... Qxf4 {[%clk 0:03:47.9]} 27. Rxf4 {[%clk 0:04:21.5]} 27... Re8 {[%clk 0:03:18.4]} 28. Bc2 {[%clk 0:03:01.5]} 28... Ree5 {[%clk 0:03:06.9]} 29. g3 {[%clk 0:02:49.4]} 29... d3+ {[%clk 0:03:02.8]} 0-1

[Event "Live Chess"]
[Site "Chess.com"]
[Date "2011.01.14"]
[Round "-"]
[White "mahloves"]
[Black "hipposcottimus"]
[Result "0-1"]
[CurrentPosition "r4rk1/p1p3p1/1bp5/3bpp2/7B/3P4/PPP1N2P/R4R1K w - -"]
[Timezone "UTC"]
[ECO "C62"]
[ECOUrl "https://www.chess.com/openings/Ruy-Lopez-Opening-Old-Steinitz-Defense-4.Bxc6"]
[UTCDate "2011.01.14"]
[UTCTime "19:44:12"]
[WhiteElo "1334"]
[BlackElo "1358"]
[TimeControl "600"]
[Termination "hipposcottimus won by resignation"]
[StartTime "19:44:12"]
[EndDate "2011.01.14"]
[EndTime "19:51:41"]
[Link "https://www.chess.com/game/live/87583714"]

1. e4 {[%clk 0:10:00]} 1... e5 {[%clk 0:10:00]} 2. Nf3 {[%clk 0:09:58.2]} 2... Nc6 {[%clk 0:09:54.3]} 3. Bb5 {[%clk 0:09:54.9]} 3... d6 {[%clk 0:09:41.1]} 4. Bxc6+ {[%clk 0:09:50.4]} 4... bxc6 {[%clk 0:09:38.4]} 5. O-O {[%clk 0:09:49.1]} 5... Ne7 {[%clk 0:09:04.6]} 6. d3 {[%clk 0:09:46.7]} 6... Ng6 {[%clk 0:08:50]} 7. g3 {[%clk 0:09:35.8]} 7... d5 {[%clk 0:08:41]} 8. Nh4 {[%clk 0:09:01.1]} 8... Nxh4 {[%clk 0:08:32.6]} 9. gxh4 {[%clk 0:08:55]} 9... Qxh4 {[%clk 0:08:23.6]} 10. Qf3 {[%clk 0:08:46.2]} 10... Be6 {[%clk 0:08:04.8]} 11. Qg3 {[%clk 0:08:42.2]} 11... Qf6 {[%clk 0:07:50.9]} 12. f3 {[%clk 0:08:38.6]} 12... Bc5+ {[%clk 0:07:46.4]} 13. Kh1 {[%clk 0:08:33.6]} 13... O-O {[%clk 0:07:43.8]} 14. Nc3 {[%clk 0:08:25]} 14... Bd4 {[%clk 0:07:24]} 15. Ne2 {[%clk 0:08:07.9]} 15... Bb6 {[%clk 0:07:08]} 16. Bg5 {[%clk 0:07:59.4]} 16... Qg6 {[%clk 0:07:00.6]} 17. Be7 {[%clk 0:07:49]} 17... Rfe8 {[%clk 0:06:43.4]} 18. Bh4 {[%clk 0:07:35.5]} 18... dxe4 {[%clk 0:06:36.4]} 19. fxe4 {[%clk 0:07:32.9]} 19... f5 {[%clk 0:06:22.9]} 20. Qxg6 {[%clk 0:07:29.1]} 20... hxg6 {[%clk 0:06:17.9]} 21. Ng3 {[%clk 0:07:23.6]} 21... Rf8 {[%clk 0:05:56.9]} 22. exf5 {[%clk 0:07:18.8]} 22... gxf5 {[%clk 0:05:43.4]} 23. Ne2 {[%clk 0:07:14]} 23... Bd5+ {[%clk 0:05:29]} 0-1

[Event "Live Chess"]
[Site "Chess.com"]
[Date "2011.01.14"]
[Round "-"]
[White "JoeLefors"]
[Black "hipposcottimus"]
[Result "0-1"]
[CurrentPosition "r4rk1/p5pp/1p6/3p2Q1/4p3/N1Nq1b2/6BK/8 w - -"]
[Timezone "UTC"]
[ECO "D02"]
[ECOUrl "https://www.chess.com/openings/Queens-Pawn-Opening-Krause-Variation-3.dxc5-e6"]
[UTCDate "2011.01.14"]
[UTCTime "19:28:55"]
[WhiteElo "1236"]
[BlackElo "1350"]
[TimeControl "240+2"]
[Termination "hipposcottimus won on time"]
[StartTime "19:28:55"]
[EndDate "2011.01.14"]
[EndTime "19:37:33"]
[Link "https://www.chess.com/game/live/87579616"]

1. d4 {[%clk 0:04:00]} 1... d5 {[%clk 0:04:00]} 2. Nf3 {[%clk 0:04:00.8]} 2... c5 {[%clk 0:03:58.2]} 3. dxc5 {[%clk 0:04:01]} 3... e6 {[%clk 0:03:48.1]} 4. b4 {[%clk 0:04:00.9]} 4... b6 {[%clk 0:03:46.8]} 5. Qd4 {[%clk 0:03:56.6]} 5... Nc6 {[%clk 0:03:36.3]} 6. Qd3 {[%clk 0:03:43.2]} 6... Nxb4 {[%clk 0:03:35.2]} 7. Qb5+ {[%clk 0:03:36.7]} 7... Bd7 {[%clk 0:03:21]} 8. Qxb4 {[%clk 0:03:35.7]} 8... Bxc5 {[%clk 0:03:18.9]} 9. Qd2 {[%clk 0:03:28.1]} 9... Nf6 {[%clk 0:03:16.6]} 10. g3 {[%clk 0:03:28.9]} 10... O-O {[%clk 0:03:13.2]} 11. Bg2 {[%clk 0:03:29.7]} 11... Ne4 {[%clk 0:03:14.3]} 12. Qf4 {[%clk 0:02:20.6]} 12... Bxf2+ {[%clk 0:03:08.2]} 13. Kd1 {[%clk 0:02:12.7]} 13... Bc5 {[%clk 0:03:09.2]} 14. Be3 {[%clk 0:01:57.4]} 14... Qe7 {[%clk 0:02:55]} 15. Bxc5 {[%clk 0:01:23]} 15... Qxc5 {[%clk 0:02:51.4]} 16. Nfd2 {[%clk 0:01:13]} 16... Nf2+ {[%clk 0:02:49.8]} 17. Ke1 {[%clk 0:01:10]} 17... Nxh1 {[%clk 0:02:49.2]} 18. Qf1 {[%clk 0:01:04.5]} 18... Nxg3 {[%clk 0:02:41.3]} 19. hxg3 {[%clk 0:01:04.6]} 19... Qxc2 {[%clk 0:02:38.1]} 20. Na3 {[%clk 0:00:48.2]} 20... Qb2 {[%clk 0:02:37.1]} 21. Ndb1 {[%clk 0:00:21]} 21... Qxa1 {[%clk 0:02:34.2]} 22. Kf2 {[%clk 0:00:21.8]} 22... Qxa2 {[%clk 0:02:31]} 23. Bf3 {[%clk 0:00:20.2]} 23... e5 {[%clk 0:02:22.8]} 24. g4 {[%clk 0:00:20.8]} 24... e4 {[%clk 0:02:19.3]} 25. Bg2 {[%clk 0:00:20.5]} 25... Bc8 {[%clk 0:02:20.3]} 26. Kg3 {[%clk 0:00:20.5]} 26... f5 {[%clk 0:02:15.2]} 27. gxf5 {[%clk 0:00:20.3]} 27... Bxf5 {[%clk 0:02:09.8]} 28. Qc1 {[%clk 0:00:17.1]} 28... Qxe2 {[%clk 0:01:58]} 29. Kh2 {[%clk 0:00:10.9]} 29... Bg4 {[%clk 0:01:50.8]} 30. Qg5 {[%clk 0:00:05.6]} 30... Bf3 {[%clk 0:01:48.8]} 31. Nc3 {[%clk 0:00:02.8]} 31... Qd3 {[%clk 0:01:39.1]} 0-1

[Event "Live Chess"]
[Site "Chess.com"]
[Date "2011.01.13"]
[Round "-"]
[White "hipposcottimus"]
[Black "robinzon54"]
[Result "0-1"]
[CurrentPosition "r4rk1/1p3ppp/2p5/p1P5/4R3/nP1R1P1N/P5PP/1K6 w - -"]
[Timezone "UTC"]
[ECO "B12"]
[ECOUrl "https://www.chess.com/openings/Caro-Kann-Defense-2.d4"]
[UTCDate "2011.01.13"]
[UTCTime "23:28:36"]
[WhiteElo "1344"]
[BlackElo "1444"]
[TimeControl "360+2"]
[Termination "robinzon54 won on time"]
[StartTime "23:28:36"]
[EndDate "2011.01.13"]
[EndTime "23:34:24"]
[Link "https://www.chess.com/game/live/87305380"]

1. e4 {[%clk 0:06:00]} 1... c6 {[%clk 0:06:00]} 2. d4 {[%clk 0:05:59.9]} 2... a5 {[%clk 0:06:00.9]} 3. e5 {[%clk 0:06:00.9]} 3... e6 {[%clk 0:06:02]} 4. c4 {[%clk 0:06:01.8]} 4... d6 {[%clk 0:06:03.1]} 5. d5 {[%clk 0:06:01.8]} 5... dxe5 {[%clk 0:06:00]} 6. dxe6 {[%clk 0:06:02.2]} 6... Qxd1+ {[%clk 0:05:55.4]} 7. Kxd1 {[%clk 0:06:04]} 7... Bxe6 {[%clk 0:05:56.5]} 8. Be3 {[%clk 0:05:59.4]} 8... Nf6 {[%clk 0:05:53.9]} 9. Nc3 {[%clk 0:06:01]} 9... Bb4 {[%clk 0:05:51.9]} 10. Kc2 {[%clk 0:06:02.7]} 10... Bxc3 {[%clk 0:05:52.7]} 11. Kxc3 {[%clk 0:06:04.4]} 11... Ne4+ {[%clk 0:05:53.7]} 12. Kc2 {[%clk 0:06:01.4]} 12... O-O {[%clk 0:05:53.3]} 13. Re1 {[%clk 0:06:02.1]} 13... Na6 {[%clk 0:05:47.3]} 14. Kb1 {[%clk 0:06:03.3]} 14... Bf5 {[%clk 0:05:33.3]} 15. Ka1 {[%clk 0:06:01.2]} 15... Nd6 {[%clk 0:05:18.5]} 16. c5 {[%clk 0:05:58]} 16... Ne4 {[%clk 0:05:08.8]} 17. Bd3 {[%clk 0:05:57.2]} 17... Nb4 {[%clk 0:05:03.5]} 18. Bb1 {[%clk 0:05:54.8]} 18... Bg6 {[%clk 0:04:45.2]} 19. f3 {[%clk 0:05:54.6]} 19... Nf6 {[%clk 0:04:37]} 20. Nh3 {[%clk 0:05:40]} 20... Bxb1 {[%clk 0:04:23.6]} 21. Kxb1 {[%clk 0:05:38.4]} 21... Nd3 {[%clk 0:04:24.4]} 22. Re2 {[%clk 0:05:23.9]} 22... Nd5 {[%clk 0:04:23.1]} 23. Rd1 {[%clk 0:05:23.8]} 23... Nxe3 {[%clk 0:03:56.3]} 24. Rxd3 {[%clk 0:05:21.1]} 24... Nc4 {[%clk 0:03:33.8]} 25. b3 {[%clk 0:05:19.3]} 25... e4 {[%clk 0:03:18.4]} 26. Rxe4 {[%clk 0:05:08.9]} 26... Na3+ {[%clk 0:03:00.4]} 0-1

[Event "Live Chess"]
[Site "Chess.com"]
[Date "2011.01.13"]
[Round "-"]
[White "hipposcottimus"]
[Black "mtptdt"]
[Result "0-1"]
[CurrentPosition "8/7q/7P/6K1/8/k7/8/8 w - -"]
[Timezone "UTC"]
[ECO "C55"]
[ECOUrl "https://www.chess.com/openings/Italian-Game-Anti-Fried-Liver-Defense"]
[UTCDate "2011.01.13"]
[UTCTime "23:07:14"]
[WhiteElo "1350"]
[BlackElo "1377"]
[TimeControl "300+3"]
[Termination "mtptdt won by resignation"]
[StartTime "23:07:14"]
[EndDate "2011.01.13"]
[EndTime "23:21:52"]
[Link "https://www.chess.com/game/live/87301196"]

1. e4 {[%clk 0:05:00]} 1... e5 {[%clk 0:05:00]} 2. Nf3 {[%clk 0:05:02.7]} 2... Nc6 {[%clk 0:05:00.8]} 3. Bc4 {[%clk 0:05:05.3]} 3... h6 {[%clk 0:05:02.3]} 4. d4 {[%clk 0:05:05.9]} 4... exd4 {[%clk 0:05:03.1]} 5. Nxd4 {[%clk 0:05:06.5]} 5... Nge7 {[%clk 0:04:40.9]} 6. c3 {[%clk 0:05:05.2]} 6... d6 {[%clk 0:04:38.4]} 7. f4 {[%clk 0:05:01.6]} 7... Bg4 {[%clk 0:04:14.7]} 8. Be2 {[%clk 0:04:43.2]} 8... Bxe2 {[%clk 0:04:10.6]} 9. Nxe2 {[%clk 0:04:44.1]} 9... Qd7 {[%clk 0:04:03.7]} 10. Be3 {[%clk 0:04:23.8]} 10... f5 {[%clk 0:03:56]} 11. Nd2 {[%clk 0:04:22]} 11... fxe4 {[%clk 0:03:28.4]} 12. Nxe4 {[%clk 0:04:10]} 12... Nf5 {[%clk 0:03:27.3]} 13. Bf2 {[%clk 0:03:59.2]} 13... Be7 {[%clk 0:03:26.6]} 14. O-O {[%clk 0:03:59.4]} 14... Qe6 {[%clk 0:03:16.7]} 15. N2g3 {[%clk 0:03:45.1]} 15... Nxg3 {[%clk 0:03:14.3]} 16. Nxg3 {[%clk 0:03:45.3]} 16... O-O {[%clk 0:03:10.1]} 17. f5 {[%clk 0:03:31.6]} 17... Qd7 {[%clk 0:03:03]} 18. b4 {[%clk 0:03:28.1]} 18... a6 {[%clk 0:02:54.7]} 19. a3 {[%clk 0:03:20.2]} 19... Rf7 {[%clk 0:02:54]} 20. c4 {[%clk 0:03:20.4]} 20... Raf8 {[%clk 0:02:53.4]} 21. b5 {[%clk 0:03:16.5]} 21... axb5 {[%clk 0:02:51.2]} 22. cxb5 {[%clk 0:03:17.8]} 22... Ne5 {[%clk 0:02:37.4]} 23. Bd4 {[%clk 0:03:03.7]} 23... Ng4 {[%clk 0:02:14.5]} 24. Qb3 {[%clk 0:03:01.6]} 24... Bf6 {[%clk 0:01:38.4]} 25. Rad1 {[%clk 0:02:54.2]} 25... Bxd4+ {[%clk 0:01:28.7]} 26. Rxd4 {[%clk 0:02:53.8]} 26... Nf6 {[%clk 0:01:26.5]} 27. Ne4 {[%clk 0:02:10.7]} 27... Nxe4 {[%clk 0:01:26.9]} 28. Rxe4 {[%clk 0:02:11.7]} 28... Kh8 {[%clk 0:01:27.4]} 29. Qe3 {[%clk 0:01:18.1]} 29... Rxf5 {[%clk 0:01:11.9]} 30. Rxf5 {[%clk 0:01:17.7]} 30... Qxf5 {[%clk 0:01:13.5]} 31. h3 {[%clk 0:00:55]} 31... d5 {[%clk 0:00:49.7]} 32. Re5 {[%clk 0:00:39.4]} 32... Qf1+ {[%clk 0:00:44]} 33. Kh2 {[%clk 0:00:38.9]} 33... Rd8 {[%clk 0:00:26.1]} 34. Qc5 {[%clk 0:00:30.6]} 34... Qf4+ {[%clk 0:00:22.3]} 35. g3 {[%clk 0:00:26.8]} 35... Qxe5 {[%clk 0:00:24.2]} 36. h4 {[%clk 0:00:26]} 36... d4 {[%clk 0:00:26.3]} 37. Qxe5 {[%clk 0:00:26.1]} 37... d3 {[%clk 0:00:24.8]} 38. Qxc7 {[%clk 0:00:26.9]} 38... Rd4 {[%clk 0:00:21.9]} 39. Qc1 {[%clk 0:00:19.8]} 39... d2 {[%clk 0:00:19.7]} 40. Qd1 {[%clk 0:00:20.9]} 40... Kg8 {[%clk 0:00:20.4]} 41. Kh3 {[%clk 0:00:22.8]} 41... Kf7 {[%clk 0:00:21.9]} 42. g4 {[%clk 0:00:25]} 42... Ke7 {[%clk 0:00:23.5]} 43. Kg3 {[%clk 0:00:27.2]} 43... Kd6 {[%clk 0:00:23.4]} 44. Kf3 {[%clk 0:00:29.9]} 44... Kd5 {[%clk 0:00:24.6]} 45. Ke3 {[%clk 0:00:28.7]} 45... b6 {[%clk 0:00:25.2]} 46. Qxd2 {[%clk 0:00:26.4]} 46... Rxd2 {[%clk 0:00:26.3]} 47. Kxd2 {[%clk 0:00:29.1]} 47... Kc4 {[%clk 0:00:28.1]} 48. g5 {[%clk 0:00:27.7]} 48... Kxb5 {[%clk 0:00:28.2]} 49. gxh6 {[%clk 0:00:29.1]} 49... gxh6 {[%clk 0:00:30.4]} 50. Ke3 {[%clk 0:00:31.3]} 50... Ka4 {[%clk 0:00:32.3]} 51. Kf4 {[%clk 0:00:34]} 51... Kxa3 {[%clk 0:00:34.5]} 52. Kf5 {[%clk 0:00:36.2]} 52... b5 {[%clk 0:00:36.8]} 53. Kg6 {[%clk 0:00:39]} 53... b4 {[%clk 0:00:39.1]} 54. Kxh6 {[%clk 0:00:41.7]} 54... b3 {[%clk 0:00:41.3]} 55. Kg5 {[%clk 0:00:41.4]} 55... b2 {[%clk 0:00:43.4]} 56. h5 {[%clk 0:00:43.6]} 56... b1=Q {[%clk 0:00:45.5]} 57. h6 {[%clk 0:00:45.8]} 57... Qh7 {[%clk 0:00:47]} 0-1

[Event "Live Chess"]
[Site "Chess.com"]
[Date "2011.01.13"]
[Round "-"]
[White "hipposcottimus"]
[Black "Aldous_Eco"]
[Result "0-1"]
[CurrentPosition "2r1k1nr/3qn1pp/p1pB1p2/2Q5/P1B1P1b1/2N5/2P2PPP/R4RK1 w k -"]
[Timezone "UTC"]
[ECO "C51"]
[ECOUrl "https://www.chess.com/openings/Giuoco-Piano-Game-Evans-Gambit-Declined-5.a4-a6"]
[UTCDate "2011.01.13"]
[UTCTime "19:57:10"]
[WhiteElo "1358"]
[BlackElo "1361"]
[TimeControl "600+5"]
[Termination "Aldous_Eco won - game abandoned"]
[StartTime "19:57:10"]
[EndDate "2011.01.13"]
[EndTime "20:05:48"]
[Link "https://www.chess.com/game/live/87247574"]

1. e4 {[%clk 0:10:00]} 1... e5 {[%clk 0:10:00]} 2. Nf3 {[%clk 0:10:02.9]} 2... Nc6 {[%clk 0:10:02.9]} 3. Bc4 {[%clk 0:10:05.5]} 3... Bc5 {[%clk 0:10:00.2]} 4. b4 {[%clk 0:10:07.5]} 4... Bb6 {[%clk 0:09:49.5]} 5. a4 {[%clk 0:10:02]} 5... a6 {[%clk 0:09:51.4]} 6. Ba3 {[%clk 0:10:01]} 6... d6 {[%clk 0:09:51.1]} 7. b5 {[%clk 0:10:03.1]} 7... Nce7 {[%clk 0:09:50.6]} 8. O-O {[%clk 0:10:04.4]} 8... f6 {[%clk 0:09:50.5]} 9. d4 {[%clk 0:10:07]} 9... exd4 {[%clk 0:09:46.1]} 10. Nxd4 {[%clk 0:10:09.1]} 10... Bxd4 {[%clk 0:08:45.5]} 11. Qxd4 {[%clk 0:10:10.6]} 11... Bg4 {[%clk 0:08:30.7]} 12. Nc3 {[%clk 0:10:00.2]} 12... c5 {[%clk 0:08:22.1]} 13. bxc6 {[%clk 0:10:01.9]} 13... bxc6 {[%clk 0:08:25.5]} 14. Bxd6 {[%clk 0:10:02.5]} 14... Rc8 {[%clk 0:07:38.4]} 15. Qc5 {[%clk 0:10:02.5]} 15... Qd7 {[%clk 0:03:57.5]} 0-1